bitfinex-derivatives/quotes_SOLF0:USTF0_20241203
["timestamp","ask_amount","ask_price","bid_price","bid_amount"]
[1733192585543,6.70183378,224.38,224.22,0.02]
[1733192585748,6.70183378,224.33,224.26,6.70183378]
[1733192585948,2.2,224.32,224.27,1.11529349]
[1733192586252,2.2,224.31,224.28,8.93073378]
[1733192586448,2.2,224.3,224.28,6.70183378]
[1733192586654,2.2,224.29,224.27,2.229]
[1733192586850,2.2285,224.32,224.27,2.229]
[1733192586851,2.2,224.28,224.27,2.229]
[1733192587550,2.2,224.28,224.26,10.28003378]
[1733192588852,2.2285,224.32,224.26,8.05093378]
[1733192589158,2.2,224.31,224.28,0.71865]
[1733192590250,2.2285,224.32,224.28,0.71865]
[1733192590450,2.2,224.31,224.28,0.71865]
[1733192591564,8.93063378,224.29,224.28,0.71865]
[1733192591754,6.70183378,224.29,224.25,1.3687]
[1733192591950,6.70183378,224.27,224.23,2.2294]
[1733192592154,2.2,224.26,224.23,2.2294]
[1733192592356,6.70183378,224.25,224.22,1.3745]
[1733192592558,6.70183378,224.25,224.18,8.05233378]
[1733192592752,6.70183378,224.25,224.18,1.3505]
[1733192593056,2.2295,224.23,224.18,3.5803]
[1733192593257,2.2295,224.23,224.18,2.2298]
[1733192593855,2.2295,224.23,224.19,6.70183378]
[1733192594662,8.93113378,224.25,224.19,8.93163378]
[1733192595357,2.2293,224.24,224.19,8.93163378]
[1733192595764,6.70183378,224.21,224.16,3.5802]
[1733192595964,2.2,224.2,224.16,1.3502]
[1733192596264,2.2,224.19,224.18,6.70183378]
[1733192596457,6.70183378,224.25,224.2,2.2297]
[1733192596662,2.2,224.24,224.18,6.70183378]
[1733192597058,4.4293,224.24,224.2,2.2296]
[1733192597364,8.90183378,224.23,224.18,6.70183378]
[1733192597559,2.2,224.22,224.18,6.70183378]
[1733192598464,2.2,224.21,224.18,6.70183378]
[1733192598760,46.38,224.3,224.2,6.70183378]
[1733192598954,13.35,224.53,224.16,1.3502]
[1733192598955,2.2,224.29,224.17,1.3414]
[1733192599155,6.70183378,224.36,224.29,6.70183378]
[1733192599354,2.2284,224.34,224.29,6.70183378]
[1733192599555,2.2,224.35,224.29,6.70183378]
[1733192599757,2.2,224.35,224.29,2.2287]
[1733192599758,8.93023378,224.34,224.29,2.2287]
[1733192600062,2.2,224.33,224.29,2.2287]
[1733192600256,4.4284,224.33,224.27,6.70183378]
[1733192600456,46.4,224.39,224.31,2.2286]
[1733192600658,2.2,224.38,224.33,6.70183378]
[1733192600956,2.2,224.38,224.35,2.2282]
[1733192601164,2.2,224.38,224.31,6.70183378]
[1733192601666,2.2,224.38,224.3,1.3414]
[1733192602364,2.2,224.38,224.33,2.2284]
[1733192602659,4.4279,224.38,224.3,1.3414]
[1733192603860,2.2282,224.36,224.3,3.5701]
[1733192604059,2.2282,224.36,224.3,1.3414]
[1733192604462,2.2283,224.35,224.3,1.3414]
[1733192604965,2.2,224.38,224.3,1.3414]
[1733192604966,2.2284,224.34,224.3,1.3414]
[1733192605167,2.2,224.33,224.3,1.3414]
[1733192605364,2.2,224.32,224.3,3.5701]
[1733192605561,2.2,224.31,224.3,1.3414]
[1733192606160,2.2,224.31,224.3,3.5701]
[1733192606359,2.2,224.31,224.26,1.3127]
[1733192606757,2.2288,224.3,224.26,1.3127]
[1733192607261,2.2285,224.33,224.26,3.5417]
[1733192607465,2.2,224.32,224.26,1.3127]
[1733192608366,2.2287,224.31,224.26,3.5418]
[1733192608567,12.70047878,224.32,224.23,2.7015]
[1733192609258,12.70047878,224.32,224.24,2.2293]
[1733192610066,2.229,224.28,224.24,2.2293]
[1733192610264,2.2,224.27,224.24,2.2293]
[1733192610869,2.2,224.26,224.24,2.2293]
[1733192612469,10.50047878,224.35,224.23,2.7015]
[1733192612670,10.50047878,224.38,224.24,10.50047878]
[1733192612971,2.2,224.37,224.27,10.50047878]
[1733192614372,2.87863,224.44,224.3,10.50047878]
[1733192614373,10.70770878,224.44,224.3,10.50047878]
[1733192614569,2.2,224.43,224.3,10.50047878]
[1733192614775,0.20723,224.44,224.33,10.50047878]
[1733192614967,2.2,224.42,224.33,10.50047878]
[1733192616074,2.2,224.42,224.39,2.2278]
[1733192619171,2.2,224.42,224.4,2.2277]
[1733192621276,2.2,224.42,224.39,2.2278]
[1733192624870,2.2,224.41,224.39,2.2278]
[1733192625276,2.2,224.41,224.36,10.50047878]
[1733192625478,2.2,224.41,224.4,2.2277]
[1733192627881,2.2,224.41,224.36,2.2281]
[1733192628084,2.2,224.41,224.37,6.71580587]
[1733192629177,2.2,224.41,224.37,8.94380587]
[1733192629382,2.2,224.41,224.39,6.71580587]
[1733192629586,0.20723,224.44,224.39,6.71580587]
[1733192629887,2.2,224.43,224.42,2.2275]
[1733192639190,2.2,224.43,224.41,8.94340587]
[1733192639687,2.2,224.43,224.42,2.2275]
[1733192639993,2.2,224.43,224.34,4.0574]
[1733192640190,2.2,224.43,224.39,6.71580587]
[1733192640693,2.2276,224.41,224.34,4.0574]
[1733192640889,8.91580587,224.43,224.36,6.71580587]
[1733192641095,2.2,224.43,224.4,2.2277]
[1733192642990,46.4,224.48,224.42,6.71580587]
[1733192643185,46.4,224.48,224.44,6.71580587]
[1733192643186,2.2,224.47,224.44,6.71580587]
[1733192643787,48.6271,224.48,224.44,8.94310587]
[1733192643989,2.2,224.47,224.46,6.71580587]
[1733192644198,2.2,224.47,224.46,8.94300587]
[1733192644390,0.0658,224.47,224.46,6.71580587]
[1733192645487,34.48460141,224.54,224.5,2.2267]
[1733192645686,2.73623,224.55,224.38,2.2837525]
[1733192645687,0.50993,224.55,224.52,6.71580587]
[1733192645887,0.50993,224.55,224.38,4.4837525]
[1733192645888,2.2,224.55,224.54,6.71580587]
[1733192646088,2.2,224.56,224.55,2.2263]
[1733192646292,305.94455816,224.69,224.55,6.71580587]
[1733192646293,2.2,224.57,224.55,6.71580587]
[1733192646494,2.2,224.56,224.55,6.71580587]
[1733192647997,2.2,224.56,224.55,8.94210587]
[1733192649801,2.2,224.56,224.55,6.71580587]
[1733192651699,2.2,224.56,224.46,1.4144]
[1733192651896,2.2,224.56,224.51,6.71580587]
[1733192652297,4.4262,224.56,224.51,8.94240587]
[1733192652695,2.2,224.56,224.53,6.71580587]
[1733192652899,2.2,224.56,224.55,6.71580587]
[1733192653101,1.3193,224.69,224.55,6.71580587]
[1733192653296,354.91990979,224.76,224.68,6.71580587]
[1733192653496,306.6240929,224.98,224.75,6.71580587]
[1733192653697,2.2,224.97,224.73,2.2]
[1733192653895,2.2,224.97,224.9,2.2227]
[1733192654095,2.2,224.97,224.92,6.71580587]
[1733192654699,6.71580587,225.03,224.92,6.71580587]
[1733192654700,2.2218,225.0,224.92,6.71580587]
[1733192654896,2.2218,225.0,224.94,6.71580587]
[1733192655101,2.38,224.99,224.94,6.71580587]
[1733192655303,9.09580587,224.99,224.88,0.02]
[1733192655505,9.09580587,224.99,224.9,6.71580587]
[1733192655710,48.74,224.99,224.91,1.11268683]
[1733192656013,2.2223,224.96,224.89,0.02]
[1733192656201,2.2223,224.96,224.9,5.13885863]
[1733192656401,2.2223,224.96,224.9,0.02]
[1733192656813,2.2223,224.96,224.89,0.02]
[1733192657105,2.2223,224.96,224.9,5.11903214]
[1733192657311,2.2221,224.98,224.91,2.91321453]
[1733192657608,2.2221,224.98,224.92,15.58589604]
[1733192657910,2.38,224.97,224.92,10.44724875]
[1733192658411,4.6021,224.97,224.9,0.02]
[1733192658712,4.6021,224.97,224.91,5.1186437]
[1733192658913,4.6021,224.97,224.89,10.44724875]
[1733192659113,2.2224,224.95,224.9,1.11275516]
[1733192659313,2.2224,224.95,224.91,1.11275516]
[1733192659515,2.38,224.97,224.89,10.44724875]
[1733192659707,2.38,224.97,224.92,1.11275651]
[1733192660014,2.38,224.97,224.89,10.44724875]
[1733192660312,4.6022,224.97,224.9,2.89313514]
[1733192660514,4.6022,224.97,224.91,2.89313514]
[1733192660715,4.6022,224.97,224.92,2.89313514]
[1733192661009,2.2223,224.95,224.89,10.44724875]
[1733192661413,2.38,224.97,224.89,10.44724875]
[1733192661615,2.2225,224.93,224.86,10.44724875]
[1733192661814,2.38,224.92,224.86,10.44724875]
[1733192662208,3.7389,224.92,224.87,1.11287686]
[1733192662413,3.7389,224.92,224.86,10.44724875]
[1733192662714,3.7389,224.92,224.87,1.1128639]
[1733192662912,3.7389,224.92,224.86,10.44724875]
[1733192664313,3.7389,224.92,224.89,10.44724875]
[1733192666716,5.9615,224.92,224.89,10.44724875]
[1733192667011,5.9615,224.92,224.7,2.38]
[1733192667213,5.9615,224.92,224.88,10.44724875]
[1733192667915,1.3589,224.92,224.88,10.44724875]
[1733192668120,200.30165332,224.89,224.84,10.44724875]
[1733192668320,39.58139798,224.89,224.85,3.4294081]
[1733192668513,39.58139798,224.89,224.88,10.44724875]
[1733192671719,2.38,224.92,224.88,12.67014875]
[1733192674717,2.2227,224.91,224.85,12.67044875]
[1733192675122,2.38,224.92,224.85,12.67044875]
[1733192675321,2.38,224.92,224.85,10.44724875]
[1733192675924,2.2227,224.91,224.85,12.67054875]
[1733192679214,2.2227,224.91,224.86,2.2232]
[1733192679823,2.38,224.9,224.86,2.2232]
[1733192680622,2.38,224.89,224.88,10.44724875]
[1733192681015,1.3668,224.93,224.9,2.2228]
[1733192681218,2.38,224.92,224.91,10.44724875]
[1733192682725,2.38,224.92,224.91,12.66994875]
[1733192684625,3.576,224.98,224.94,2.2224]
[1733192684823,2.28,224.97,224.94,10.44724875]
[1733192685016,4.5021,224.97,224.94,10.44724875]
[1733192685623,2.28,224.97,224.94,10.44724875]
[1733192687029,3.576,224.98,224.94,10.44724875]
[1733192687228,2.28,224.97,224.94,10.44724875]
[1733192687425,4.5021,224.97,224.94,10.44724875]
[1733192687626,4.5021,224.97,224.93,2.2225]
[1733192689026,2.2223,224.95,224.91,2.2227]
[1733192689431,2.28,224.97,224.91,2.2227]
[1733192689629,2.28,224.97,224.88,10.44724875]
[1733192689630,2.2222,224.96,224.92,2.2226]
[1733192690032,2.28,224.97,224.93,3.45761051]
[1733192690228,2.28,224.97,224.94,3.45761051]
[1733192690423,2.28,224.97,224.95,3.45761051]
[1733192690725,2.28,224.97,224.91,10.44724875]
[1733192690928,2.28,224.97,224.92,8.99972833]
[1733192691122,1.354,224.98,224.93,3.46143397]
[1733192691324,2.28,224.97,224.94,13.90868272]
[1733192691523,2.28,224.97,224.95,3.46444759]
[1733192691728,2.28,224.97,224.96,3.46444759]
[1733192692024,46.36,224.99,224.98,2.222]
[1733192692230,48.64,224.99,224.98,2.222]
[1733192693531,48.64,224.99,224.98,11.24461428]
[1733192695231,48.64,224.99,224.98,9.02261428]
[1733192697335,48.64,224.99,224.98,11.24461428]
[1733192697532,48.64,224.99,224.98,18.2387664]
[1733192698133,48.64,224.99,224.98,11.24461428]
[1733192698333,48.64,224.99,224.98,18.26437268]
[1733192700034,48.64,224.99,224.98,16.04237268]
[1733192700340,48.64,224.99,224.98,9.02261428]
[1733192701235,48.64,224.99,224.98,2.222]
[1733192701441,2.28,224.99,224.98,11.34631484]
[1733192701633,2.28,224.99,224.98,11.34614908]
[1733192702232,2.28,224.99,224.98,9.12414908]
[1733192702439,2.28,225.0,224.98,9.12414908]
[1733192702741,2.28,225.0,224.95,10.44724875]
[1733192702742,2.28,225.0,224.99,21.79329783]
[1733192703342,2.28,225.0,224.99,16.17843686]
[1733192705243,2.28,225.0,224.99,12.66914875]
[1733192709741,4.5018,225.0,224.96,2.2221]
[1733192710042,2.28,225.0,224.94,10.44724875]
[1733192710637,2.28,225.0,224.99,2.2219]
[1733192711637,2.28,225.0,224.98,10.44724875]
[1733192711844,2.7137,225.06,225.02,2.2216]
[1733192712043,2.7137,225.06,225.01,10.44724875]
[1733192712044,2.28,225.05,225.01,10.44724875]
[1733192712543,2.28,225.05,225.03,2.2214]
[1733192712839,2.28,225.05,225.01,10.44724875]
[1733192712840,4.5013,225.05,225.01,10.44724875]
[1733192713045,2.28,225.05,225.01,10.44724875]
[1733192713442,2.2215,225.03,224.99,2.2219]
[1733192713941,2.2215,225.03,224.98,10.44724875]
[1733192714345,2.2215,225.03,224.98,12.66914875]
[1733192715947,2.2217,225.02,224.98,2.2219]
[1733192716446,2.2219,224.99,224.84,12.68679345]
[1733192716647,2.2,224.98,224.94,10.44724875]
[1733192716839,2.2,224.98,224.94,12.66954875]
[1733192717042,4.4221,224.98,224.94,12.66954875]
[1733192717248,2.2,224.98,224.94,10.44724875]
[1733192717546,4.422,224.98,224.95,2.2223]
[1733192717740,2.2,224.98,224.95,2.2223]
[1733192718841,2.2,224.98,224.94,10.44724875]
[1733192719038,2.2,224.98,224.95,2.2223]
[1733192721746,2.2,224.98,224.93,2.2224]
[1733192721747,2.2221,224.97,224.93,2.2224]
[1733192722047,2.2,224.98,224.91,10.44724875]
[1733192722345,2.2224,224.95,224.91,10.44724875]
[1733192722547,2.2,224.98,224.91,10.44724875]
[1733192723044,2.2,224.98,224.91,12.66994875]
[1733192723045,2.2222,224.96,224.91,12.66994875]
[1733192723242,2.2,224.98,224.91,12.66994875]
[1733192724750,2.2,224.98,224.91,10.44724875]
[1733192724940,1.3778,224.97,224.91,10.44724875]
[1733192725450,2.2224,224.95,224.91,10.44724875]
[1733192725947,2.6736,224.97,224.91,10.44724875]
[1733192726152,362.06143247,225.36,224.94,10.44724875]
[1733192726153,2.22842482,225.16,224.94,10.44724875]
[1733192726343,4.9308,225.06,224.95,2.2223]
[1733192726650,2.2215,225.03,224.95,2.2223]
[1733192726847,4.9308,225.06,224.95,2.2223]
[1733192727054,4.9308,225.06,224.96,2.2222]
[1733192727345,2.2,225.05,224.97,10.44724875]
[1733192727849,2.2,225.04,225.0,10.44724875]
[1733192728949,4.4215,225.04,225.0,10.44724875]
[1733192729650,4.4215,225.04,225.0,2.2218]
[1733192730458,2.2,225.04,225.01,2.2217]
[1733192730753,2.2,225.03,225.01,10.44724875]
[1733192731755,2.2,225.03,225.02,2.2216]
[1733192732049,2.6882,225.12,225.01,10.44724875]
[1733192732251,2.6882,225.12,225.05,10.44724875]
[1733192732451,2.2,225.1,225.08,10.44724875]
[1733192732843,2.2,225.09,225.08,10.44724875]
[1733192733553,2.2204,225.14,225.09,2.2209]
[1733192733854,2.2,225.1,225.09,2.2209]
[1733192734555,2.2,225.1,225.08,12.66824875]
[1733192734748,2.2,225.1,225.08,10.44724875]
[1733192736046,2.2,225.1,225.09,2.2209]
[1733192736650,2.2,225.1,225.08,12.66824875]
[1733192740455,2.6852,225.19,225.08,12.66824875]
[1733192740456,2.2,225.09,225.08,12.66824875]
[1733192741550,2.2,225.09,224.95,10.44724875]
[1733192741551,2.2,225.09,225.05,10.44724875]
[1733192743858,4.4209,225.09,225.05,10.44724875]
[1733192744259,2.2,225.09,225.05,10.44724875]
[1733192745859,4.421,225.09,225.05,12.66854875]
[1733192746055,2.2,225.09,225.05,10.44724875]
[1733192746260,2.2,225.09,225.07,2.221]
[1733192747155,2.2,225.09,225.08,12.66824875]
[1733192747558,2.2,225.09,225.08,8.89450993]
[1733192750457,2.2,225.09,225.08,6.67350993]
[1733192750854,2.2,225.09,224.94,2.25753736]
[1733192751162,2.2,225.09,224.92,2.2]
[1733192751163,2.2211,225.08,224.92,2.2]
[1733192751462,2.2,225.09,224.92,2.2]
[1733192751761,2.2,225.09,224.92,4.41071015]
[1733192751953,4.4209,225.09,225.08,6.67350993]
[1733192760877,2.2,225.09,224.95,2.23405567]
[1733192761179,2.2211,225.07,225.06,6.67350993]
[1733192761682,2.2211,225.07,225.05,6.67350993]
[1733192762784,2.221,225.08,225.05,6.67350993]
[1733192762985,2.221,225.08,225.07,6.67350993]
[1733192763882,2.221,225.08,225.04,2.2214]
[1733192764180,2.221,225.08,225.06,6.67350993]
[1733192766286,2.2211,225.07,225.03,2.2215]
[1733192766486,2.2211,225.07,225.06,6.67350993]
[1733192766685,2.2211,225.07,225.03,2.2215]
[1733192766886,2.2211,225.07,225.06,6.67350993]
[1733192768981,2.2,225.09,225.06,6.67350993]
[1733192769185,2.2,225.09,225.08,6.67350993]
[1733192770579,2.2208,225.1,225.08,6.67350993]
[1733192770785,2.2,225.09,225.08,8.89450993]
[1733192770982,2.2,225.09,225.08,6.67350993]
[1733192771384,2.2,225.09,225.08,8.89450993]
[1733192773982,37.06917612,225.19,225.08,6.67350993]
[1733192774188,2.2,225.18,225.16,6.67350993]
[1733192774689,37.06917612,225.19,225.16,6.67350993]
[1733192774988,2.2,225.18,225.16,6.67350993]
[1733192775989,2.2201,225.17,225.16,6.67350993]
[1733192777189,2.2,225.18,225.16,6.67350993]
[1733192777795,2.2,225.17,225.16,6.67350993]
[1733192779095,4.4201,225.17,225.16,6.67350993]
[1733192780293,2.2,225.17,225.12,6.67350993]
[1733192780695,2.2,225.17,225.14,6.67350993]
[1733192781494,2.2,225.17,225.01,0.4462]
[1733192781688,2.2,225.17,225.12,6.67350993]
[1733192781886,2.2203,225.16,225.12,6.67350993]
[1733192782091,2.2,225.17,225.12,6.67350993]
[1733192782891,2.2205,225.14,225.12,6.67350993]
[1733192784198,2.2205,225.13,225.12,6.67350993]
[1733192784794,2.2209,225.1,225.05,2.2212]
[1733192785099,2.6852,225.19,224.97,2.27011534]
[1733192785100,2.2,225.09,224.97,2.27011534]
[1733192785298,2.2,225.09,224.92,0.4462]
[1733192785299,2.2,225.08,225.07,6.67350993]
[1733192785496,4.421,225.08,225.07,6.67350993]
[1733192785989,2.2,225.08,225.07,6.67350993]
[1733192787196,4.421,225.08,225.07,6.67350993]
[1733192788695,2.2,225.08,224.94,2.26455787]
[1733192788896,2.2,225.08,225.04,6.67350993]
[1733192789202,2.2,225.08,225.05,6.67350993]
[1733192789503,2.2212,225.06,225.05,6.67350993]
[1733192795509,2.2214,225.05,225.0,2.2217]
[1733192795706,2.2214,225.05,225.04,6.67350993]
[1733192797001,2.2214,225.05,225.01,2.2216]
[1733192797202,2.2214,225.05,225.04,6.67350993]
[1733192798608,2.2212,225.06,225.04,6.67350993]
[1733192798912,2.2212,225.06,225.05,6.67350993]
[1733192800009,2.2213,225.05,224.92,0.4462]
[1733192800207,2.2213,225.05,225.04,6.67350993]
[1733192801014,2.2212,225.06,225.04,6.67350993]
[1733192801209,2.2212,225.06,225.05,6.67350993]
[1733192808310,2.2211,225.07,225.05,6.67350993]
[1733192812417,2.7047,225.1,225.05,6.67350993]
[1733192812712,2.2,225.09,225.07,6.67350993]
[1733192812917,2.7047,225.1,225.07,6.67350993]
[1733192813114,46.26,225.2,225.09,6.67350993]
[1733192813419,2.2,225.17,225.13,6.67350993]
[1733192813617,2.2202,225.16,225.13,6.67350993]
[1733192813914,46.26,225.2,225.15,6.67350993]
[1733192814118,46.26,225.2,224.99,2.2]
[1733192814119,2.2,225.19,225.17,6.67350993]
[1733192814920,4.4199,225.19,225.17,6.67350993]
[1733192815720,2.2,225.19,225.17,6.67350993]
[1733192816716,4.42,225.19,225.17,6.67350993]
[1733192819323,2.2,225.19,225.17,6.67350993]
[1733192819529,2.22,225.18,225.17,6.67350993]
[1733192819822,2.2,225.19,225.01,1.11150598]
[1733192820019,2.2,225.19,225.14,6.67350993]
[1733192820020,2.2203,225.16,225.14,6.67350993]
[1733192820621,2.2204,225.15,225.13,6.67350993]
[1733192820823,2.2,225.14,225.13,6.67350993]
[1733192821919,2.2191,225.28,225.13,6.67350993]
[1733192822119,2.2,225.27,225.14,6.0283]
[1733192822325,2.2,225.26,225.14,6.0283]
[1733192822526,2.2,225.25,225.24,2.2194]
[1733192823130,46.24,225.35,225.24,6.67350993]
[1733192823333,4.4185,225.34,225.33,6.67350993]
[1733192823733,2.2,225.34,225.16,2.2]
[1733192823927,46.24,225.35,225.31,6.67350993]
[1733192824229,2.2,225.34,225.16,2.2]
[1733192824435,1.56493,225.31,225.29,6.67350993]
[1733192825033,3.78363,225.31,225.29,6.67350993]
[1733192828030,1.56493,225.31,225.25,2.2193]
[1733192828337,2.2189,225.3,225.29,6.67350993]
[1733192829442,3.78373,225.31,225.29,6.67350993]
[1733192829740,1.56493,225.31,225.14,8.27609759]
[1733192829939,1.56493,225.31,225.29,6.67350993]
[1733192830937,2.2189,225.3,225.29,6.67350993]
[1733192831740,1.56493,225.31,225.14,8.27609759]
[1733192831944,2.2191,225.28,225.14,8.27609759]
[1733192832136,2.2,225.3,225.28,6.67350993]
[1733192832332,2.2,225.3,225.14,8.27609759]
[1733192832737,2.219,225.29,225.23,2.2194]
[1733192833343,2.219,225.29,225.23,2.2195]
[1733192833543,2.2,225.3,225.14,8.27609759]
[1733192833744,2.2189,225.29,225.28,6.67350993]
[1733192836744,2.2,225.3,225.28,6.67350993]
[1733192837138,2.2,225.3,225.25,2.2193]
[1733192837336,2.2,225.3,225.23,2.2195]
[1733192837535,2.2,225.3,225.28,6.67350993]
[1733192838442,2.2189,225.29,225.28,6.67350993]
[1733192839441,2.2,225.3,225.28,6.67350993]
[1733192840943,2.2189,225.29,225.28,6.67350993]
[1733192841744,4.4189,225.3,225.28,6.67350993]
[1733192846848,2.2,225.29,225.28,6.67350993]
[1733192847149,4.4189,225.29,225.26,2.2192]
[1733192847349,4.4189,225.29,225.28,6.67350993]
[1733192847546,2.2188,225.31,225.28,6.67350993]
[1733192847748,46.24,225.35,225.3,6.67350993]
[1733192847948,2.2,225.34,225.32,6.67350993]
[1733192849050,2.2186,225.33,225.32,6.67350993]
[1733192850049,2.2188,225.31,225.3,6.67350993]
[1733192854049,2.2,225.34,225.3,6.67350993]
[1733192855352,2.219,225.29,225.26,2.2192]
[1733192855555,2.2,225.28,225.26,2.2192]
[1733192859258,2.2,225.28,225.27,8.89260993]
[1733192861058,46.24,225.35,225.27,6.67350993]
[1733192861359,2.2,225.34,225.32,6.67350993]
[1733192861557,4.4185,225.34,225.32,6.67350993]
[1733192861754,4.4345,225.47,225.32,6.67350993]
[1733192861960,2.2,225.41,225.34,6.67350993]
[1733192862161,2.2184,225.35,225.31,2.2187]
[1733192862459,2.2,225.34,225.33,6.67350993]
[1733192863360,4.4185,225.34,225.33,6.67350993]
[1733192866758,2.2,225.34,225.33,6.67350993]
[1733192867162,4.1922,225.41,225.33,6.67350993]
[1733192867463,2.2181,225.38,225.37,6.67350993]
[1733192867863,2.2,225.38,225.37,6.67350993]
[1733192868165,2.2,225.38,225.37,8.89170993]
[1733192868460,2.2,225.38,225.37,6.67350993]
[1733192871763,2.2,225.38,225.25,6.0228]
[1733192872065,2.2,225.38,225.37,6.67350993]
[1733192873062,4.4181,225.38,225.37,6.67350993]
[1733192875870,4.4181,225.38,225.34,2.2184]
[1733192876063,4.4181,225.38,225.37,6.67350993]
[1733192879664,2.2,225.38,225.25,6.0228]
[1733192879865,2.2,225.38,225.36,6.67350993]
[1733192880470,2.2181,225.37,225.36,6.67350993]
[1733192880770,2.18,225.37,225.36,6.67350993]
[1733192883076,4.3981,225.37,225.36,6.67350993]
[1733192883275,2.18,225.37,225.36,6.67350993]
[1733192887982,2.18,225.37,225.25,6.0228]
[1733192888491,2.18,225.37,225.34,6.67350993]
[1733192888683,2.18,225.37,225.36,6.67350993]
[1733192889482,4.3981,225.37,225.36,6.67350993]
[1733192890984,2.2184,225.35,225.25,6.0228]
[1733192892690,2.2184,225.35,225.31,2.2187]
[1733192892892,2.2184,225.35,225.34,6.67350993]
[1733192896690,2.18589565,225.63,225.34,8.85899011]
[1733192896896,2.18,225.58,225.49,6.67350993]
[1733192897196,6.3924,225.61,225.49,6.67350993]
[1733192897400,2.18,225.6,225.57,6.67350993]
[1733192898098,2.216,225.59,225.57,6.67350993]
[1733192898789,2.18,225.58,225.57,6.67350993]
[1733192899993,2.216,225.59,225.57,6.67350993]
[1733192900296,44.07534413,227.75,225.44,2.0813]
[1733192900297,2.18,225.58,225.44,2.0813]
[1733192900491,2.18,225.57,225.44,2.0813]
[1733192900798,2.18,225.56,225.44,2.0813]
[1733192901000,6.2187,225.67,225.44,2.0813]
[1733192901198,2.18,225.66,225.63,6.67350993]
[1733192901796,2.2154,225.65,225.63,6.67350993]
[1733192902795,2.2156,225.63,225.52,2.2167]
[1733192902995,2.2156,225.63,225.62,6.67350993]
[1733192904302,2.18,225.66,225.46,2.103]
[1733192904303,2.2158,225.61,225.46,2.103]
[1733192904499,2.18,225.6,225.46,2.103]
[1733192905192,2.18,225.6,225.53,2.2166]
[1733192905397,2.2161,225.59,225.46,2.103]
[1733192905695,2.18,225.6,225.59,6.67350993]
[1733192906097,2.18,225.6,225.59,3.46400993]
[1733192906296,2.2161,225.58,225.52,2.2166]
[1733192906498,2.2161,225.58,225.57,6.67350993]
[1733192907891,2.18,225.58,225.57,6.67350993]
[1733192908898,2.18,225.58,225.57,8.88970993]
[1733192909103,6.2187,225.67,225.62,6.67350993]
[1733192909298,6.2187,225.67,225.64,6.67350993]
[1733192909299,2.18,225.66,225.64,6.67350993]
[1733192911203,2.2154,225.65,225.64,6.67350993]
[1733192911503,2.18,225.66,225.62,6.67350993]
[1733192911703,2.2156,225.63,225.62,6.67350993]
[1733192914204,6.67350993,225.65,225.59,6.67350993]
[1733192915401,6.67350993,225.65,225.54,2.2164]
[1733192915803,6.67350993,225.65,225.59,6.67350993]
[1733192916006,2.216,225.6,225.59,6.67350993]
[1733192916207,4.396,225.6,225.59,6.67350993]
[1733192917710,4.396,225.6,225.55,2.2164]
[1733192917906,4.396,225.6,225.59,6.67350993]
[1733192921513,2.216,225.59,225.54,2.2165]
[1733192921710,2.216,225.59,225.58,6.67350993]
[1733192923808,4.396,225.59,225.58,6.67350993]
[1733192924010,2.18,225.59,225.58,6.67350993]
[1733192924214,2.2157,225.62,225.59,2.216]
[1733192924412,2.18,225.6,225.59,2.216]
[1733192925013,2.18,225.6,225.46,2.103]
[1733192925212,2.18,225.6,225.47,1.10937089]
[1733192925408,2.18,225.6,225.51,2.2167]
[1733192925614,2.18,225.6,225.46,2.103]
[1733192925813,2.18,225.6,225.47,1.10937108]
[1733192926009,2.18,225.6,225.48,1.10937108]